bitfinex/quotes_BTCUSD_20241123
["timestamp","ask_amount","ask_price","bid_price","bid_amount"]
[1732332310503,0.0001102,98448.0,98420.0,0.0775]
[1732332310719,0.0001102,98448.0,98421.0,0.0491]
[1732332311597,0.14014253,98448.0,98421.0,0.0041]
[1732332312662,0.09073233,98447.0,98421.0,0.0041]
[1732332313096,0.09073233,98447.0,98422.0,0.0775]
[1732332313314,0.14003233,98448.0,98422.0,0.0775]
[1732332313532,0.09073233,98447.0,98422.0,0.0775]
[1732332313759,0.0493,98448.0,98423.0,0.0775]
[1732332313956,0.09072841,98447.0,98423.0,0.0775]
[1732332314471,0.0493,98448.0,98424.0,0.04803975]
[1732332314472,0.0590284,98448.0,98424.0,0.04803975]
[1732332314888,0.0590284,98448.0,98425.0,0.0819]
[1732332315115,0.0493,98448.0,98425.0,0.0819]
[1732332316618,0.0493,98448.0,98425.0,0.0369]
[1732332317737,0.07770318,98435.0,98407.0,0.0472]
[1732332317955,0.07770318,98440.0,98407.0,0.0472]
[1732332317956,0.07770318,98430.0,98407.0,0.0472]
[1732332318194,0.0475,98434.0,98407.0,0.0472]
[1732332319031,0.02649999,98434.0,98407.0,0.0472]
[1732332319253,0.0798,98433.0,98407.0,0.0472]
[1732332319702,0.0798,98433.0,98408.0,0.0827]
[1732332320330,0.13609262,98441.0,98414.0,0.0465]
[1732332320540,0.023,98443.0,98415.0,0.0827]
[1732332320792,0.13609262,98445.0,98415.0,0.0827]
[1732332321019,0.13609262,98444.0,98415.0,0.0827]
[1732332321236,0.17745452,98445.0,98415.0,0.0827]
[1732332321479,0.13609262,98445.0,98415.0,0.0827]
[1732332321686,0.13609262,98443.0,98415.0,0.0827]
[1732332322315,0.13609262,98444.0,98415.0,0.0827]
[1732332322530,0.13609262,98444.0,98409.0,0.0827]
[1732332322764,0.23101663,98448.0,98410.0,0.083716]
[1732332322765,0.13609262,98445.0,98410.0,0.083716]
[1732332322973,0.13609262,98444.0,98407.0,0.0827]
[1732332323183,0.13609262,98445.0,98407.0,0.0827]
[1732332323397,0.05509261,98446.0,98407.0,0.0827]
[1732332323609,0.05509261,98446.0,98408.0,0.0465]
[1732332323824,0.23101663,98448.0,98412.0,0.0465]
[1732332324058,0.33520788,98447.0,98415.0,0.1292]
[1732332324276,0.09080816,98442.0,98415.0,0.1292]
[1732332324512,0.09080816,98440.0,98415.0,0.1292]
[1732332324744,0.09080816,98439.0,98415.0,0.0842]
[1732332325182,0.0487,98438.0,98415.0,0.0842]
[1732332326698,0.09080816,98439.0,98415.0,0.0842]
[1732332326699,0.05850815,98439.0,98415.0,0.0842]
[1732332327797,0.10002068,98439.0,98415.0,0.0842]
[1732332328694,0.10002068,98439.0,98415.0,0.0392]
[1732332330415,0.04151253,98439.0,98415.0,0.0392]
[1732332330618,0.00921252,98441.0,98416.0,0.0465]
[1732332330827,0.082,98443.0,98416.0,0.0465]
[1732332331249,0.07770318,98440.0,98416.0,0.0465]
[1732332331462,0.0828598,98443.0,98416.0,0.0465]
[1732332331694,0.12342765,98443.0,98416.0,0.0465]
[1732332332145,0.12342765,98443.0,98417.0,0.0465]
[1732332332350,0.12342765,98443.0,98418.0,0.0827]
[1732332332557,0.13629098,98442.0,98419.0,0.0015]
[1732332333420,0.13629098,98441.0,98419.0,0.0015]
[1732332334291,0.13629098,98441.0,98420.0,0.0827]
[1732332334714,0.05529097,98441.0,98420.0,0.0827]
[1732332335341,0.04226964,98443.0,98420.0,0.0827]
[1732332335557,0.04226964,98443.0,98421.0,0.0474]
[1732332336459,0.33557611,98442.0,98421.0,0.0474]
[1732332336686,0.09090454,98436.0,98421.0,0.0024]
[1732332337121,0.09090454,98439.0,98421.0,0.0024]
[1732332337379,0.09090454,98438.0,98421.0,0.0024]
[1732332338052,0.07770318,98431.0,98407.0,0.0787]
[1732332338302,0.07770318,98420.0,98407.0,0.0787]
[1732332338759,0.09090454,98429.0,98407.0,0.0787]
[1732332338972,0.09090454,98417.0,98407.0,0.0787]
[1732332339185,0.09090454,98419.0,98407.0,0.0787]
[1732332339408,0.09090454,98421.0,98407.0,0.0787]
[1732332339634,0.09090454,98423.0,98408.0,0.0469]
[1732332339871,0.09090454,98423.0,98409.0,0.0769]
[1732332340082,0.09090454,98428.0,98409.0,0.0769]
[1732332340749,0.09090454,98429.0,98409.0,0.0319]
[1732332341196,0.09090454,98428.0,98409.0,0.0319]
[1732332341818,0.0769,98435.0,98409.0,0.0319]
[1732332342875,0.0769,98435.0,98409.0,0.0336192]
[1732332343742,0.13631151,98435.0,98409.0,0.0336192]
[1732332344147,0.18251151,98436.0,98409.0,0.0336192]
[1732332344350,0.13631151,98435.0,98409.0,0.0336192]
[1732332344561,0.18251151,98436.0,98408.0,0.0355192]
[1732332344991,0.13631151,98435.0,98408.0,0.0355192]
[1732332345223,0.18251151,98436.0,98408.0,0.0355192]
[1732332345442,0.07770318,98440.0,98407.0,0.0469]
[1732332345673,0.3354231,98439.0,98408.0,0.0469]
[1732332345891,0.07770318,98440.0,98408.0,0.0469]
[1732332347141,0.0753,98441.0,98408.0,0.0469]
[1732332347325,0.0010161,98440.0,98406.0,0.0017196]
[1732332347479,0.0010161,98442.0,98407.0,0.0769]
[1732332347680,0.0008598,98443.0,98408.0,0.07791602]
[1732332347681,0.0010161,98441.0,98408.0,0.07791602]
[1732332347908,0.0010161,98442.0,98408.0,0.07791602]
[1732332348115,0.0010161,98441.0,98409.0,0.0769]
[1732332348313,0.0010161,98442.0,98411.0,0.0769]
[1732332348483,0.0010161,98441.0,98411.0,0.0769]
[1732332348691,0.0010161,98442.0,98410.0,0.00101595]
[1732332348910,0.0010161,98441.0,98410.0,0.00101595]
[1732332349089,0.0008598,98443.0,98406.0,0.0017196]
[1732332349090,0.0010161,98442.0,98406.0,0.0017196]
[1732332349293,0.0010161,98441.0,98406.0,0.0017196]
[1732332349532,0.0010161,98442.0,98406.0,0.0017196]
[1732332349729,0.0010161,98441.0,98406.0,0.0017196]
[1732332349963,0.0010161,98442.0,98406.0,0.0017196]
[1732332350170,0.0010161,98441.0,98406.0,0.0017196]
[1732332350376,0.0010161,98442.0,98407.0,0.0469]
[1732332350579,0.0010161,98441.0,98407.0,0.0469]
[1732332350783,0.00029917,98451.0,98407.0,0.0469]
[1732332351562,0.09084924,98445.0,98408.0,0.0769]
[1732332351773,0.09084924,98445.0,98412.0,0.0469]
[1732332351970,0.09084924,98445.0,98414.0,0.1238]
[1732332352221,0.09084924,98445.0,98418.0,0.0469]
[1732332352619,0.09084924,98445.0,98418.0,0.0019]
[1732332353618,0.00029917,98451.0,98418.0,0.0019]
[1732332353821,0.09084717,98445.0,98418.0,0.0019]
[1732332354231,0.09084717,98445.0,98417.0,0.0769]
[1732332355262,0.09084717,98444.0,98417.0,0.11809419]
[1732332355459,0.00984716,98445.0,98417.0,0.11809419]
[1732332355659,0.00984716,98445.0,98418.0,0.0451]
[1732332356300,0.00984716,98445.0,98419.0,0.1239]
[1732332356497,0.00984716,98445.0,98419.0,0.0789]
[1732332356703,0.13627837,98448.0,98419.0,0.0789]
[1732332357104,0.13627837,98448.0,98420.0,0.0451]
[1732332357569,0.13627837,98450.0,98420.0,0.0451]
[1732332357806,0.00029917,98451.0,98420.0,0.0451]
[1732332357807,0.13657754,98451.0,98420.0,0.0451]
[1732332358594,0.00029917,98451.0,98420.0,0.0451]
[1732332358746,0.13657754,98451.0,98420.0,0.0451]
[1732332358989,0.081,98449.0,98420.0,0.0451]
[1732332359490,0.04979999,98450.0,98420.0,0.0451]
[1732332360112,0.04979999,98450.0,98421.0,0.0753]
[1732332360512,0.04979999,98450.0,98421.0,0.0303]
[1732332360734,0.0784,98449.0,98421.0,0.0303]
[1732332361716,0.00029917,98451.0,98422.0,0.04701594]
[1732332363583,0.00029917,98451.0,98423.0,0.0753]
[1732332363783,0.00029917,98451.0,98426.0,0.0753]
[1732332364027,0.06594316,98468.0,98429.0,0.1213]
[1732332364248,0.023,98467.0,98432.0,0.046]
[1732332364690,0.0729,98467.0,98431.0,0.0753]
[1732332365972,0.0008605,98451.0,98431.0,0.0753]
[1732332367691,0.09889202,98468.0,98432.0,0.046]
[1732332367918,0.09889202,98468.0,98434.0,0.046]
[1732332369420,0.09889202,98468.0,98434.0,0.001]
[1732332369645,0.0499,98467.0,98433.0,0.0753]
[1732332371150,0.15610318,98450.0,98408.0,0.17971149]
[1732332371405,0.07770318,98443.0,98404.0,0.17971149]
[1732332371630,0.07770318,98443.0,98400.0,0.22463936]
[1732332371631,0.07770318,98443.0,98400.0,0.17971149]
[1732332371875,0.07770318,98443.0,98407.0,0.04206379]
[1732332372117,0.07770318,98443.0,98407.0,0.0017194]
[1732332372346,0.0784,98442.0,98407.0,0.0017194]
[1732332372565,0.0784,98442.0,98408.0,0.0492]
[1732332372798,0.0473,98441.0,98408.0,0.0042]
[1732332373037,0.04469999,98442.0,98409.0,0.0824]
[1732332376120,0.0486,98442.0,98409.0,0.0824]
[1732332376745,0.0486,98442.0,98409.0,0.0374]
[1732332377378,0.0486,98442.0,98409.0,0.0391208]
[1732332377584,0.0486,98442.0,98409.0,0.0017208]
[1732332377792,0.0486,98449.0,98410.0,0.0465]
[1732332377996,0.0486,98449.0,98411.0,0.0465]
[1732332378229,0.0008604,98451.0,98411.0,0.0465]
[1732332379058,0.0008604,98451.0,98413.0,0.0465]
[1732332379282,0.0008604,98451.0,98414.0,0.0010159]
[1732332379509,0.0008604,98451.0,98415.0,0.0465]
[1732332379717,0.0008604,98451.0,98417.0,0.0465]
[1732332379927,0.0008604,98451.0,98419.0,0.0465]
[1732332380146,0.07746357,98462.0,98432.0,0.00090125]
[1732332380371,0.07746357,98462.0,98433.0,0.1275]
[1732332380811,0.07746357,98462.0,98433.0,0.0825]
[1732332382795,0.0486,98464.0,98433.0,0.0825]
[1732332383004,0.0486,98464.0,98434.0,0.081]
[1732332383248,0.07770318,98470.0,98434.0,0.081]
[1732332384085,0.11901154,98470.0,98434.0,0.081]
[1732332384294,0.07770318,98470.0,98434.0,0.081]
[1732332384717,0.07770318,98470.0,98434.0,0.036]
[1732332385743,0.07770318,98470.0,98433.0,0.0015]
[1732332386756,0.03593533,98450.0,98410.0,0.023]
[1732332386962,0.00101583,98449.0,98411.0,0.1065]
[1732332387171,0.00101583,98449.0,98413.0,0.1065]
[1732332387803,0.00101583,98449.0,98417.0,0.081]
[1732332388014,0.05595115,98457.0,98417.0,0.081]
[1732332388433,0.1285,98456.0,98417.0,0.081]
[1732332388612,0.1285,98456.0,98417.0,0.036]
[1732332389305,0.002,98455.0,98417.0,0.036]
[1732332389507,0.023,98454.0,98417.0,0.0777307]
[1732332389766,0.023,98454.0,98418.0,0.0465]
[1732332390005,0.023,98455.0,98418.0,0.0465]
[1732332391267,0.002,98452.0,98418.0,0.0465]
[1732332391531,0.023,98451.0,98418.0,0.0465]
[1732332392232,0.12845114,98456.0,98418.0,0.0465]
[1732332392679,0.12845114,98456.0,98418.0,0.0015]
[1732332393359,0.07770318,98450.0,98418.0,0.0015]
[1732332393564,0.0476,98449.0,98418.0,0.0015]
[1732332394223,0.07770318,98460.0,98409.0,0.04306365]
[1732332394224,0.0476,98439.0,98409.0,0.12166365]
[1732332395108,0.1248,98439.0,98409.0,0.12166365]
[1732332395752,0.00205564,98422.0,98409.0,0.12166365]
[1732332396257,0.04585563,98439.0,98409.0,0.12166365]
[1732332396685,0.04585563,98439.0,98409.0,0.07666365]
[1732332397552,0.04585563,98439.0,98409.0,0.11772293]
[1732332399199,0.09215563,98439.0,98409.0,0.11772293]
[1732332399628,0.07770318,98430.0,98409.0,0.07666365]
[1732332399855,0.05595115,98434.0,98409.0,0.07666365]
[1732332400710,0.05595115,98434.0,98409.0,0.03338445]
[1732332401454,0.06710677,98439.0,98409.0,0.03338445]
[1732332404414,0.06710677,98439.0,98385.0,0.13494752]
[1732332404640,0.06380994,98440.0,98386.0,0.0805]
[1732332404878,0.0772,98439.0,98388.0,0.0461]
[1732332405282,0.0772,98439.0,98390.0,0.0461]
[1732332405399,0.0772,98439.0,98392.0,0.0461]
[1732332405602,0.0772,98439.0,98394.0,0.0461]
[1732332405804,0.0772,98439.0,98385.0,0.1065]
[1732332405805,0.0772,98439.0,98395.0,0.04711614]
[1732332407574,0.0463,98438.0,98395.0,0.04711614]
[1732332407797,0.0463,98438.0,98397.0,0.0461]
[1732332408650,0.0463,98438.0,98397.0,0.0011]
[1732332409505,0.0772,98439.0,98397.0,0.0011]
[1732332410166,0.07770318,98430.0,98397.0,0.0011]
[1732332410353,0.0772,98429.0,98396.0,0.0805]
[1732332412007,0.0463,98426.0,98370.0,0.023]
[1732332412239,0.0463,98424.0,98367.0,0.023]
[1732332412483,0.0772,98423.0,98366.0,0.023]
[1732332412700,0.04249999,98424.0,98396.0,0.955]
[1732332412904,0.04249999,98424.0,98397.0,0.0017208]
[1732332415816,0.0782,98423.0,98397.0,0.0017208]
[1732332416027,0.0498,98422.0,98397.0,0.0017208]
[1732332416769,0.04699999,98423.0,98396.0,0.9117208]
[1732332419880,0.0498,98422.0,98396.0,0.9117208]
[1732332420758,0.01579998,98423.0,98396.0,0.8667208]
[1732332421002,0.01579998,98423.0,98397.0,0.0455]
[1732332423720,0.01579998,98423.0,98398.0,0.0813]
[1732332424821,0.02500352,98429.0,98398.0,0.0363]
[1732332425064,0.07770318,98430.0,98398.0,0.0363]
[1732332425284,0.023,98437.0,98398.0,0.0363]
[1732332425492,0.0782,98429.0,98396.0,0.74513375]
[1732332426127,0.0782,98429.0,98397.0,0.00101624]
[1732332428364,0.0782,98429.0,98399.0,0.0455]
[1732332428566,0.0782,98429.0,98400.0,0.0455]
[1732332429027,0.04699999,98436.0,98402.0,0.0455]
[1732332429264,0.04699999,98436.0,98404.0,0.0455]
[1732332429478,0.04699999,98436.0,98404.0,0.0005]
[1732332429919,0.04143282,98438.0,98405.0,0.0813]
[1732332430124,0.0008607,98439.0,98405.0,0.0813]
[1732332430565,0.0008607,98439.0,98406.0,0.00101597]
[1732332430768,0.0008607,98439.0,98407.0,0.0813]
[1732332430989,0.0008607,98439.0,98396.0,0.74513375]
[1732332430990,0.0008607,98439.0,98408.0,0.00101597]
[1732332431208,0.0008607,98439.0,98409.0,0.0813]
[1732332431431,0.0008607,98439.0,98410.0,0.08231597]
[1732332431870,0.0008607,98439.0,98410.0,0.0813]
[1732332432465,0.0008607,98439.0,98411.0,0.0455]
[1732332432596,0.0008607,98439.0,98412.0,0.0363]
[1732332433481,0.08880875,98453.0,98412.0,0.0813]
[1732332433766,0.0506604,98454.0,98412.0,0.0813]
[1732332433767,0.13946915,98454.0,98412.0,0.0813]
[1732332434173,0.0506604,98454.0,98412.0,0.0813]
[1732332434786,0.0506604,98454.0,98413.0,0.0828]
[1732332435213,0.0487,98449.0,98413.0,0.0828]
[1732332435412,0.0487,98449.0,98414.0,0.0828]
[1732332435677,0.0008604,98454.0,98416.0,0.1289]
[1732332435888,0.0008604,98454.0,98419.0,0.0828]
[1732332436138,0.0008604,98454.0,98420.0,0.0461]
[1732332436357,0.0008604,98454.0,98422.0,0.0461]
[1732332436604,0.0008604,98454.0,98423.0,0.0828]
[1732332436835,0.0008604,98454.0,98424.0,0.0461]
[1732332437110,0.0008604,98454.0,98425.0,0.0828]
[1732332438276,0.0008604,98449.0,98425.0,0.0828]
[1732332438505,0.0008604,98449.0,98427.0,0.0461]
[1732332438738,0.0008604,98449.0,98428.0,0.08381586]
[1732332439011,0.0008604,98449.0,98428.0,0.00101586]
[1732332439654,0.075,98466.0,98428.0,0.00101586]
[1732332439877,0.075,98466.0,98429.0,0.0461]
[1732332440358,0.11605773,98466.0,98429.0,0.0461]
[1732332442025,0.11605773,98466.0,98430.0,0.0828]
[1732332442256,0.11605773,98466.0,98407.0,0.0461]
[1732332442694,0.0487,98465.0,98407.0,0.0011]
[1732332442919,0.0487,98465.0,98394.0,0.1]
[1732332443344,0.0487,98465.0,98397.0,0.023]
[1732332443772,0.08375772,98466.0,98399.0,0.0461]
[1732332443996,0.08375772,98466.0,98401.0,0.0461]
[1732332444170,0.08375772,98466.0,98403.0,0.0461]
[1732332444373,0.08375772,98466.0,98405.0,0.0461]
[1732332444628,0.08375772,98466.0,98409.0,0.023]
[1732332444828,0.08375772,98466.0,98401.0,0.0461]
[1732332445059,0.08375772,98466.0,98404.0,0.0461]
[1732332445295,0.08375772,98466.0,98408.0,0.023]
[1732332445548,0.08375772,98466.0,98412.0,0.1289]
[1732332445755,0.08375772,98466.0,98418.0,0.1289]
[1732332445963,0.08375772,98466.0,98421.0,0.0461]
[1732332446916,0.08375772,98466.0,98420.0,0.0828]
[1732332446917,0.0487,98465.0,98420.0,0.0828]
[1732332447391,0.075,98464.0,98420.0,0.0828]
[1732332448026,0.04269999,98465.0,98421.0,0.0461]
[1732332448165,0.04269999,98465.0,98422.0,0.0828]
[1732332448575,0.04269999,98465.0,98424.0,0.0828]
[1732332450879,0.075,98464.0,98424.0,0.0378]
[1732332451596,0.03756038,98465.0,98424.0,0.0828]
[1732332451792,0.03756038,98465.0,98425.0,0.1289]
[1732332452021,0.03756038,98465.0,98427.0,0.0461]
[1732332452246,0.03756038,98465.0,98430.0,0.0828]
[1732332452447,0.03756038,98465.0,98431.0,0.0828]
[1732332454610,0.0763,98464.0,98431.0,0.0828]
[1732332454811,0.0763,98464.0,98431.0,0.0378]
[1732332455597,0.03286037,98465.0,98431.0,0.07918001]
[1732332455789,0.03286037,98465.0,98431.0,0.0378]
[1732332458478,0.07770318,98460.0,98431.0,0.0378]
[1732332458696,0.0487,98458.0,98430.0,0.0389]
[1732332459464,0.0487,98458.0,98404.0,0.02810907]
[1732332459465,0.125,98439.0,98384.0,0.22436038]
[1732332459632,0.125,98439.0,98375.0,0.22436038]
[1732332459846,0.125,98439.0,98372.0,0.1]
[1732332460620,0.125,98439.0,98396.0,0.78853682]
[1732332461833,0.04399999,98439.0,98397.0,0.1259]
[1732332462146,0.04399999,98439.0,98398.0,0.0783]
[1732332462717,0.04399999,98439.0,98398.0,0.0333]
[1732332464809,0.08769999,98439.0,98398.0,0.0333]
[1732332465671,0.08769999,98439.0,98397.0,0.0493202]
[1732332465672,0.00669998,98439.0,98397.0,0.0017202]
[1732332465872,0.00669998,98439.0,98401.0,0.0476]
[1732332466746,0.00669998,98439.0,98401.0,0.0026]
[1732332469080,0.0763,98438.0,98401.0,0.0026]
[1732332470066,0.00199997,98439.0,98402.0,0.0783]
[1732332470846,0.0763,98438.0,98402.0,0.0333]
[1732332473663,0.11650523,98440.0,98402.0,0.0333]
[1732332474328,0.11650523,98440.0,98402.0,0.0777]
[1732332474812,0.0757,98439.0,98401.0,0.0026]
[1732332476934,0.0466,98438.0,98401.0,0.0026]
[1732332477831,0.04216059,98439.0,98402.0,0.0764]
[1732332478080,0.04216059,98439.0,98404.0,0.0764]
[1732332478788,0.04216059,98439.0,98405.0,0.0807]
[1732332479015,0.0466,98438.0,98405.0,0.0807]
[1732332480931,0.0008606,98439.0,98406.0,0.0762]
[1732332481176,0.0008606,98439.0,98407.0,0.0762]
[1732332481791,0.01869947,98447.0,98407.0,0.0762]
[1732332481998,0.01869947,98447.0,98410.0,0.0762]
[1732332482211,0.045,98448.0,98412.0,0.1261]
[1732332482410,0.045,98448.0,98413.0,0.0762]
[1732332482822,0.045,98448.0,98412.0,0.0499]
[1732332484549,0.08597443,98448.0,98412.0,0.0499]
[1732332485911,0.14140318,98450.0,98413.0,0.0762]
[1732332486132,0.14140318,98450.0,98417.0,0.0762]
[1732332486623,0.18306761,98450.0,98417.0,0.0762]
[1732332486835,0.18306761,98450.0,98417.0,0.0312]
[1732332487075,0.18306761,98450.0,98418.0,0.0499]
[1732332488747,0.0008606,98448.0,98418.0,0.0499]
[1732332489974,0.18063138,98450.0,98419.0,0.0762]
[1732332490214,0.1029282,98450.0,98420.0,0.0499]
[1732332491507,0.1029282,98450.0,98420.0,0.0049]
[1732332493886,0.09064267,98450.0,98421.0,0.0762]
[1732332494061,0.09064267,98451.0,98421.0,0.0762]
[1732332494318,0.13124267,98452.0,98421.0,0.0762]
[1732332494519,0.0406,98452.0,98421.0,0.0762]
[1732332495052,0.08255256,98452.0,98421.0,0.0762]
[1732332495258,0.13129068,98452.0,98421.0,0.0762]
[1732332495464,0.13129068,98452.0,98422.0,0.0825]
[1732332496613,0.0462,98439.0,98409.0,0.0825]
[1732332497780,0.16839386,98440.0,98409.0,0.0825]
[1732332497781,0.13359385,98440.0,98409.0,0.0825]
[1732332498382,0.04290317,98440.0,98409.0,0.0825]
[1732332498786,0.13359385,98440.0,98409.0,0.0825]
[1732332499201,0.09069068,98439.0,98409.0,0.0825]
[1732332499393,0.09069068,98438.0,98409.0,0.0825]
[1732332500296,0.07770318,98430.0,98409.0,0.0825]
[1732332501765,0.00969067,98436.0,98409.0,0.0825]
[1732332501980,0.00969067,98436.0,98410.0,0.048]
[1732332502246,0.0394,98438.0,98410.0,0.1305]
[1732332503210,0.17543602,98438.0,98410.0,0.1305]
[1732332503888,0.13603602,98437.0,98410.0,0.1305]
[1732332504096,0.17543602,98438.0,98410.0,0.1305]
[1732332504298,0.13603602,98442.0,98418.0,0.1305]
[1732332504503,0.38603602,98443.0,98422.0,0.1305]
[1732332504702,0.25,98443.0,98424.0,0.0825]
[1732332504934,0.13603602,98448.0,98426.0,0.0825]
[1732332505159,0.13603602,98448.0,98427.0,0.048]
[1732332505367,0.0008605,98451.0,98429.0,0.048]
[1732332505573,0.0008605,98451.0,98430.0,0.0825]
[1732332507411,0.13621041,98461.0,98430.0,0.0825]
[1732332507835,0.18161388,98464.0,98430.0,0.0825]
[1732332508042,0.18161388,98463.0,98430.0,0.0825]
[1732332508245,0.51677078,98464.0,98430.0,0.0825]
[1732332508418,0.3351569,98463.0,98430.0,0.0825]
[1732332508642,0.22350622,98465.0,98430.0,0.0825]
[1732332508798,0.33512013,98464.0,98431.0,0.0825]
[1732332509471,0.37701247,98465.0,98431.0,0.0825]
[1732332509663,0.33508392,98464.0,98432.0,0.0825]
[1732332510563,0.04189234,98465.0,98432.0,0.0825]
[1732332511385,0.04189234,98465.0,98433.0,0.1305]
[1732332511591,0.04189234,98465.0,98434.0,0.0825]
[1732332511805,0.09074931,98462.0,98434.0,0.0825]
[1732332512012,0.09074931,98461.0,98434.0,0.0825]
[1732332512214,0.09074931,98462.0,98434.0,0.0825]
[1732332512420,0.09074931,98462.0,98429.0,0.04067046]
[1732332512421,0.09074931,98463.0,98436.0,0.0825]
[1732332512641,0.09074931,98463.0,98437.0,0.0825]
[1732332512843,0.09160971,98463.0,98437.0,0.0825]
[1732332513260,0.0008604,98463.0,98437.0,0.0825]
[1732332514168,0.0008604,98463.0,98439.0,0.0825]
[1732332514545,0.0106097,98464.0,98439.0,0.0825]
[1732332515119,0.04189234,98465.0,98439.0,0.0825]
[1732332517173,0.04189234,98465.0,98441.0,0.0784]
[1732332517368,0.04189234,98465.0,98443.0,0.0784]
[1732332518606,0.023,98469.0,98443.0,0.0784]
[1732332519848,0.273,98469.0,98443.0,0.0784]
[1732332520686,0.25,98466.0,98443.0,0.0784]
[1732332522578,0.16899999,98466.0,98443.0,0.0784]
[1732332524630,0.09071799,98465.0,98443.0,0.0784]
[1732332525470,0.07770318,98460.0,98443.0,0.0784]
[1732332526445,0.16842117,98460.0,98443.0,0.0784]
[1732332526795,0.09072886,98458.0,98443.0,0.0784]
[1732332527005,0.09072886,98459.0,98443.0,0.0784]
[1732332527208,0.09072886,98458.0,98443.0,0.0784]
[1732332527667,0.00972885,98458.0,98443.0,0.0784]
[1732332527872,0.00972885,98459.0,98443.0,0.0784]
[1732332528295,0.11924605,98460.0,98443.0,0.0784]
[1732332531119,0.002,98459.0,98443.0,0.0784]
[1732332531808,0.002,98456.0,98443.0,0.0784]
[1732332532508,0.002,98457.0,98443.0,0.0784]
[1732332532719,0.11794922,98460.0,98443.0,0.0784]
[1732332532898,0.07770318,98460.0,98443.0,0.0784]
[1732332534068,0.11921931,98460.0,98443.0,0.0784]
[1732332536584,0.11592248,98460.0,98443.0,0.0784]
[1732332536719,0.07770318,98460.0,98443.0,0.0784]
[1732332537741,0.09074604,98458.0,98443.0,0.0784]
[1732332537964,0.09074604,98458.0,98443.0,0.0801206]
[1732332538674,0.09074604,98454.0,98443.0,0.0801206]
[1732332538881,0.03154818,98457.0,98443.0,0.0801206]
[1732332538882,0.09074604,98453.0,98443.0,0.0801206]
[1732332540699,0.13610846,98457.0,98443.0,0.0801206]
[1732332540962,0.03156831,98456.0,98443.0,0.0801206]
[1732332541498,0.03156831,98455.0,98443.0,0.0801206]
[1732332541729,0.25,98457.0,98443.0,0.0801206]
[1732332541943,0.03156523,98456.0,98443.0,0.0801206]
[1732332542365,0.07770318,98453.0,98443.0,0.0801206]
[1732332542571,0.023,98449.0,98435.0,0.0762]
[1732332542770,0.15540636,98445.0,98422.0,0.0017208]
[1732332542954,0.13156495,98448.0,98422.0,0.0017208]
[1732332542955,0.07770318,98432.0,98422.0,0.0017208]
[1732332543165,0.21381164,98440.0,98422.0,0.0017208]
[1732332543369,0.16767691,98439.0,98422.0,0.0017208]
[1732332543580,0.03156845,98438.0,98422.0,0.0017208]
[1732332545748,0.25,98427.0,98423.0,0.0762]
[1732332546941,0.25,98430.0,98423.0,0.0762]
[1732332547570,0.16899999,98430.0,98423.0,0.0762]
[1732332547779,0.11955943,98432.0,98423.0,0.0762]
[1732332548843,0.25,98427.0,98423.0,0.0762]
[1732332549752,0.25,98430.0,98423.0,0.0762]
[1732332550740,0.11955943,98432.0,98396.0,0.69551326]
[1732332550960,0.04185625,98432.0,98396.0,0.69551326]
[1732332551331,0.25,98437.0,98396.0,0.69551326]
[1732332551332,0.25,98437.0,98423.0,0.001721]
[1732332551928,0.07770318,98440.0,98423.0,0.001721]
[1732332552251,0.118451,98440.0,98423.0,0.001721]
[1732332553123,0.118451,98440.0,98396.0,0.65223426]
[1732332554244,0.118451,98440.0,98408.0,0.0762]
[1732332554464,0.03745099,98440.0,98408.0,0.0762]
[1732332554698,0.07770318,98440.0,98408.0,0.0762]
[1732332554918,0.023,98439.0,98408.0,0.0762]
[1732332555379,0.07770318,98430.0,98408.0,0.0762]
[1732332557144,0.07770318,98430.0,98408.0,0.0312]
[1732332559755,0.0487,98429.0,98408.0,0.0312]
[1732332561061,0.0487,98429.0,98407.0,0.0355]
[1732332561654,0.15700318,98430.0,98407.0,0.0355]
[1732332562466,0.19891793,98430.0,98407.0,0.0355]
[1732332562841,0.25,98427.0,98407.0,0.0355]
[1732332563515,0.25,98427.0,98408.0,0.001721]
[1732332564028,0.25,98427.0,98409.0,0.0829]
[1732332564991,0.25,98427.0,98409.0,0.0379]
[1732332565788,0.16899999,98427.0,98409.0,0.0379]
[1732332567871,0.25,98427.0,98409.0,0.0379]
[1732332569185,0.25,98427.0,98407.0,0.030121]
[1732332569605,0.16899999,98427.0,98407.0,0.030121]
[1732332570015,0.07770318,98420.0,98407.0,0.030121]
[1732332570248,0.16899999,98427.0,98407.0,0.030121]
[1732332571751,0.25,98426.0,98407.0,0.030121]
[1732332572852,0.25,98426.0,98396.0,0.65223426]
[1732332572853,0.25,98426.0,98409.0,0.0484]
[1732332573077,0.25,98426.0,98409.0,0.0034]
[1732332573739,0.00321591,98429.0,98409.0,0.0034]
[1732332574198,0.25,98434.0,98409.0,0.0034]
[1732332574199,0.21413065,98434.0,98409.0,0.0034]
[1732332574840,0.25,98432.0,98409.0,0.0034]
[1732332575851,0.25,98427.0,98409.0,0.0034]
[1732332576975,0.25,98427.0,98408.0,0.0361]
[1732332577594,0.16899999,98427.0,98408.0,0.0361]
[1732332579517,0.21110061,98427.0,98408.0,0.0361]
[1732332579894,0.29210062,98427.0,98408.0,0.0361]
[1732332580100,0.29210062,98427.0,98409.0,0.047]
[1732332580744,0.29143023,98427.0,98409.0,0.047]
[1732332580918,0.29143023,98427.0,98409.0,0.002]
[1732332581502,0.21043022,98427.0,98409.0,0.002]
[1732332582320,0.25231782,98427.0,98409.0,0.002]
[1732332582625,0.25231782,98427.0,98408.0,0.0361]
[1732332582626,0.25231782,98427.0,98408.0,0.0761]
[1732332582833,0.0418876,98427.0,98408.0,0.0761]
[1732332583036,0.09074546,98436.0,98408.0,0.0761]
[1732332583254,0.0817,98438.0,98408.0,0.0761]
[1732332583255,0.09074546,98437.0,98408.0,0.0761]
[1732332583618,0.09074546,98437.0,98409.0,0.0761]
[1732332583816,0.09074546,98439.0,98409.0,0.0761]
[1732332584015,0.04118509,98438.0,98410.0,0.047]
[1732332584150,0.09160586,98440.0,98416.0,0.047]